Cogmind - Beta 12 @@@ ROGUE MODE // 2023.11.25 @ 10:59:26 Player: RBrandon Result: Core destroyed Performance ------------- Evolutions (1) 500 Regions Visited (5) 1000 Robots Destroyed (35) 175 Value Destroyed (496) 496 Prototype IDs (4) 80 Alien Tech Used (0) 0 Bonus (168) 168 TOTAL SCORE: 2419 Bonus ------- Aligned with FarCom 300 Friendly Fire -132 Cogmind --------- Core Integrity 0/400 Matter 300/300 Energy 100/100 System Corruption 2% Temperature Cool (0) Movement Core (100) Ox1 Location -9/Exiles Parts ------- > --- POWER (1) -------- (None) > --- PROPULSION (3) --- (None) > --- UTILITY (3) ------ Lightpack 2.0 > --- WEAPON (2) ------- (None) > --- INVENTORY (40) --- Light Ion Engine Small Storage Unit Sensor Array Experimental Sensor Array Light Armor Plating Improved EM Shotgun Improved Grenade Launcher Improved Grenade Launcher Datajack Mining Laser Peak State ------------ > --- POWER ------------ Improved Ion Engine > --- PROPULSION ------- Wheel Wheel Compact Wheel > --- UTILITY ---------- Lightpack 2.0 > --- WEAPON ----------- Improved EM Shotgun Improved EM Shotgun > --- INVENTORY -------- Small Storage Unit Sensor Array Experimental Sensor Array Light Armor Plating Improved Grenade Launcher Improved Grenade Launcher Datajack Mining Laser [Rating: 43] Favorites ----------- Power Improved Ion Engine Engine Improved Ion Engine Propulsion Improved Hover Unit Leg Aluminum Leg Wheel Wheel Hover Unit Improved Hover Unit Utility Small Storage Unit Device Heat Sink Storage Small Storage Unit Processor Transport Network Coupler Protection Light Armor Plating Weapon Medium Laser Energy Gun Medium Laser Ballistic Gun Assault Rifle Impact Weapon Heavy Mace Build | -11 -10 -10 -9 -9 -9 ------- Run | Jun Mat Min Mat Min Exi Slots Evolved 2 | . . . 2 . . Power . | . . . . . . Propulsion 1 | . . . 1 . . Utility 1 | . . . 1 . . Weapon . | . . . . . . Parts Attached 31 | 6 4 1 12 5 3 Power 4 | 1 1 . 2 . . Engine 4 | 1 1 . 2 . . Core . | . . . . . . Reactor . | . . . . . . Propulsion 11 | 2 2 . 3 4 . Treads . | . . . . . . Leg 2 | 2 . . . . . Wheel 4 | . . . . 4 . Hover 5 | . 2 . 3 . . Flight . | . . . . . . Utility 7 | 1 1 . 2 1 2 Device 2 | . 1 . . 1 . Storage 3 | 1 . . . . 2 Processor 1 | . . . 1 . . Hackware . | . . . . . . Protection 1 | . . . 1 . . Artifact . | . . . . . . Weapon 9 | 2 . 1 5 . 1 Energy Gun 5 | 2 . . 3 . . Energy Cannon . | . . . . . . Ballistic Gun 1 | . . 1 . . . Ballistic Cannon . | . . . . . . Launcher . | . . . . . . Special Weapon . | . . . . . . Impact Weapon 3 | . . . 2 . 1 Slashing Weapon . | . . . . . . Piercing Weapon . | . . . . . . Special Melee Weapon . | . . . . . . Unidentified Prototypes 4 | . . . 2 . 2 Corrupted Parts 1 | . . . . 1 . System Corruption 2 | . . . . 2 . Parts Lost 12 | . . 1 4 1 6 Power 2 | . . . 1 . 1 Propulsion 6 | . . . 2 1 3 Utility 1 | . . . 1 . . Weapon 3 | . . 1 . . 2 Highest Loss Streak 6 | . . 1 2 1 6 To Critical Strikes 1 | . . . . . 1 Average Slot Usage (%) 93 | . 96 100 91 96 85 Engine 11 | . 14 14 10 11 10 Leg 6 | . 23 . . . . Wheel 9 | . . . . 25 31 Hover 13 | . 4 28 28 4 . Device 7 | . 10 14 4 6 5 Storage 12 | . 14 14 11 11 11 Processor 2 | . . . 5 4 . Protection 5 | . . . 9 11 5 Energy Gun 20 | . 28 26 13 22 19 Ballistic Gun 2 | . . 1 6 . . Impact Weapon 1 | . . . 2 . 1 Naked Turns . | . . . . . . Heaviest Build 23 | 14 15 13 21 22 23 Greatest Support 36 | 20 20 14 21 36 36 Greatest Overweight (x) 2 | 1 2 . 1 2 . Average Overweight (x) . | . . . . . . Largest Inventory Capacity 40 | 8 8 8 8 8 40 Average Capacity 10 | 7 8 8 8 8 22 Most Carried 10 | 6 8 8 8 8 10 Average Carried 7 | 3 6 7 7 7 8 Final Capacity 40 | 8 8 8 8 8 40 Final Carried 10 | 6 8 7 8 7 10 Class Distribution -------------------- 73% | Mutant 18% | Scavenger-Mutant 8% | Hauler-Mutant Dominant Class ---------------- Mutant | -10/Materials Mutant | -10/Mines Mutant | -9/Materials Scavenger-Mutant | -9/Mines Hauler-Mutant | -9/Exiles Resources | -11 -10 -10 -9 -9 -9 ----------- Run | Jun Mat Min Mat Min Exi Matter Collected 516 | 249 40 16 141 50 20 Remotely . | . . . . . . Salvage Created 893 | 14 176 81 380 242 . Parts 56 | 3 16 8 12 17 . Haulers Intercepted 2 | . . . 2 . . Recyclers Shooed 1 | 1 . . . . . Parts Field Recycled . | . . . . . . Retrieved Matter . | . . . . . . Parts Self-Destructed . | . . . . . . Prevented . | . . . . . . Kills | -11 -10 -10 -9 -9 -9 ------- Run | Jun Mat Min Mat Min Exi Combat Hostiles Destroyed 27 | . 9 5 9 4 . Melee 3 | . 1 . 2 . . Guns 19 | . 8 5 5 1 . AOE 4 | . . . 1 3 . Classes Destroyed 7 | 1 2 . 2 2 . Worker 3 | . . . . 3 . Tunneler 2 | 1 . . . 1 . Hauler 2 | . . . 2 . . Recycler 1 | . . . . 1 . Swarmer 21 | . 8 5 4 4 . Grunt 4 | . 1 . 3 . . Sentry 2 | . . . 2 . . Best Kill Streak 5 | 1 5 3 4 4 . Combat Bots Only 5 | . 5 3 4 4 . Max Kills in Single Turn 3 | 1 2 2 1 3 . Gunslinging 1 | . 1 1 . . . Exploded 3 | . . . 1 3 . Melee 1 | . 1 . 1 . . Uniques/NPCs Destroyed . | . . . . . . Combat | -11 -10 -10 -9 -9 -9 -------- Run | Jun Mat Min Mat Min Exi Damage Taken 1694 | . 236 128 357 29 944 Core 495 | . 58 36 55 . 346 Absorbed by Shields . | . . . . . . Core Remaining (%) 81 | 100 . 62 . . . Volleys Fired 55 | 6 17 8 17 7 . Largest 2 | 2 2 2 2 2 . Hottest 100 | 100 100 100 90 90 . Shots Fired 109 | 12 34 16 33 14 . Gun 109 | 12 34 16 33 14 . Cannon . | . . . . . . Launcher . | . . . . . . Special . | . . . . . . Kinetic 9 | . . 2 7 . . Thermal 67 | 12 34 14 7 . . Explosive . | . . . . . . Electromagnetic 33 | . . . 19 14 . Robot Hit Streak 12 | 3 7 4 12 6 . Robot Miss Streak 4 | 4 4 2 4 3 . Penetration Max . | . . . . . . Secondary Targets 3 | . 1 1 1 . . Max Gunslinging Chain 1 | . 1 1 1 . . Shots Hit Robots 86 | 6 20 10 34 11 5 Core Hits 39 | 2 10 5 12 10 . Critical Kills . | . . . . . . Critical Parts Destroyed 3 | . . . 3 . . Critical Strikes 6 | . 2 1 3 . . Burn 3 | . 2 1 . . . Smash 3 | . . . 3 . . Melee Attacks 21 | . . . 11 . 10 Impact 21 | . . . 11 . 10 Slashing . | . . . . . . Piercing . | . . . . . . Sneak Attacks 4 | . . . 3 . 1 Combat Hostiles 1 | . . . 1 . . Follow-up Attacks . | . . . . . . Damage Inflicted 1846 | 75 269 124 861 294 223 Guns 929 | 75 251 124 335 144 . Cannons . | . . . . . . Explosions 236 | . . . 86 150 . Melee 657 | . . . 440 . 217 Ramming 24 | . 18 . . . 6 Kinetic 91 | . . 12 79 . . Thermal 747 | 75 251 112 159 150 . Explosive . | . . . . . . Electromagnetic 327 | . . . 183 144 . Impact 657 | . . . 440 . 217 Slashing . | . . . . . . Piercing . | . . . . . . Highest Corruption 2 | . . . . 2 2 Average Corruption 2 | . . . . 2 2 Corruption Purged . | . . . . . . Corruption Blocked . | . . . . . . Effects 3 | . . . . . 3 Message Errors 1 | . . . . . 1 Data Loss (minor) 1 | . . . . . 1 Data Loss (major) 1 | . . . . . 1 Overload Shots . | . . . . . . Overflow Damage 216 | . . . 199 17 . Projectiles 1 | . . . 1 . . Explosions 17 | . . . . 17 . Melee 198 | . . . 198 . . Knockbacks 2 | . . . 2 . . Impact 1 | . . . 1 . . Kinetic . | . . . . . . Secondary 1 | . . . 1 . . Self-Inflicted Damage 13 | . . . . 11 2 Shots 1 | . . . . 1 . Rammed 4 | . . . . . 4 Targets Rammed 15 | . 11 . . . 4 Kicked 11 | . 11 . . . . Crushed . | . . . . . . Highest Temperature 219 | 139 158 47 219 90 . Average Temperature 60 | 67 61 22 84 37 . Received Heat Transfer 223 | . 54 . 69 . 100 Effects 3 | . . . 3 . . Interference 3 | . . . 3 . . Siege Activations . | . . . . . . Robots Corrupted . | . . . . . . Combat Hostiles . | . . . . . . Parts Fried 8 | . . . 8 . . Impact Corruptions 6 | . . . 6 . . Robots Melted . | . . . . . . Combat Hostiles . | . . . . . . Parts Melted 5 | . 1 2 2 . . Heat Transferred 1989 | 222 888 407 272 200 . Parts Sabotaged . | . . . . . . Parts Stolen . | . . . . . . Parts Stripped . | . . . . . . Power Chain Reactions 3 | . . . 1 2 . Missiles Intercepted . | . . . . . . Alert | -11 -10 -10 -9 -9 -9 ------- Run | Jun Mat Min Mat Min Exi Peak Influence 271 | 5 265 169 271 190 . Initial 65 | . 3 44 65 45 . Average 137 | 1 155 83 148 178 . Maximum Alert Level 1 | . 1 . 1 . . Low Security (%) 83 | 100 62 100 85 100 . Level 1 16 | . 37 . 14 . . Level 2 . | . . . . . . Level 3 . | . . . . . . Level 4 . | . . . . . . Level 5 . | . . . . . . High Security . | . . . . . . Max Security . | . . . . . . Squads Dispatched 3 | . 1 . 2 . . Investigation 2 | . . . 2 . . Extermination . | . . . . . . Reinforcement 1 | . 1 . . . . Assault . | . . . . . . Garrison . | . . . . . . Intercept . | . . . . . . Searches Triggered . | . . . . . . Construction Impeded . | . . . . . . Haulers Reinforced . | . . . . . . Active Scanning Responses . | . . . . . . Cargo Convoy Interrupts . | . . . . . . Stealth | -11 -10 -10 -9 -9 -9 --------- Run | Jun Mat Min Mat Min Exi Distress Signals 3 | . . . 3 . . Communications Jammed . | . . . . . . Distress Signals . | . . . . . . Times Spotted 43 | . 14 6 11 4 8 Peak Tracking Total 9 | . 4 3 4 4 9 Tactical Retreats 3 | . 1 1 1 . . Traps | -11 -10 -10 -9 -9 -9 ------- Run | Jun Mat Min Mat Min Exi Traps Triggered 1 | . . . 1 . . Indirectly . | . . . . . . Trap Hack Attempts . | . . . . . . Triggered . | . . . . . . Disarmed 3 | . . . 3 . . Reprogrammed . | . . . . . . Reused . | . . . . . . Traps Extracted . | . . . . . . Installed . | . . . . . . Triggered 1 | . . . 1 . . Machines | -11 -10 -10 -9 -9 -9 ---------- Run | Jun Mat Min Mat Min Exi Machines Disabled 2 | . . . . 2 . Max in Single Turn 1 | . . . . 1 . Machines Repaired . | . . . . . . Machines Sabotaged . | . . . . . . Overloaded Fab Kills . | . . . . . . Hacking | -11 -10 -10 -9 -9 -9 --------- Run | Jun Mat Min Mat Min Exi Machines Accessed 8 | . 2 . 3 . 3 Terminals 4 | . 2 . 2 . . Fabricators . | . . . . . . Repair Stations . | . . . . . . Recycling Units . | . . . . . . Scanalyzers 1 | . . . 1 . . Garrison Access . | . . . . . . Total Hacks 39 | . 6 . 16 . 17 Successful 34 | . 4 . 13 . 17 Failed 5 | . 2 . 3 . . Catastrophic . | . . . . . . Database Lockouts . | . . . . . . Manual 3 | . . . . . 3 Terminals 13 | . 6 . 7 . . Fabricators . | . . . . . . Repair Stations . | . . . . . . Recycling Units . | . . . . . . Scanalyzers 9 | . . . 9 . . Garrison Access . | . . . . . . Terminal Hacks 25 | . 4 . 4 . 17 Record 17 | . . . . . 17 Emergency Access Points 1 | . . . 1 . . Alert Level 2 | . 1 . 1 . . Unreport Threat 1 | . 1 . . . . Locate Traps 1 | . . . 1 . . Disarm Traps 1 | . . . 1 . . Registered Components 1 | . 1 . . . . Zone Layout 1 | . 1 . . . . Fabricator Hacks . | . . . . . . Repair Station Hacks . | . . . . . . Recycling Unit Hacks . | . . . . . . Scanalyzer 9 | . . . 9 . . Insert Component 4 | . . . 4 . . Analyze 5 | . . . 5 . . Garrison Access Hacks . | . . . . . . Unauthorized Hacks . | . . . . . . Terminals . | . . . . . . Fabricators . | . . . . . . Repair Stations . | . . . . . . Recycling Units . | . . . . . . Scanalyzers . | . . . . . . Garrison Access . | . . . . . . Data Cores Recovered . | . . . . . . Used . | . . . . . . Hacking Detections 4 | . 2 . 2 . . Full Trace Events . | . . . . . . Feedback Events . | . . . . . . Feedback Blocked . | . . . . . . Robot Schematics Acquired . | . . . . . . Robots Built . | . . . . . . Authchips . | . . . . . . Time . | . . . . . . Total Robot Build Rating . | . . . . . . Part Schematics Acquired 4 | . . . 4 . . Parts Built . | . . . . . . Authchips . | . . . . . . Time . | . . . . . . Total Part Build Rating . | . . . . . . Parts Repaired . | . . . . . . Time . | . . . . . . Parts Recycled . | . . . . . . Recycled Matter . | . . . . . . Retrieved Matter . | . . . . . . Retrieved Components . | . . . . . . Parts Scanalyzed 4 | . . . 4 . . Part Schematics Acquired 4 | . . . 4 . . Parts Damaged . | . . . . . . Bothacking | -11 -10 -10 -9 -9 -9 ------------ Run | Jun Mat Min Mat Min Exi Used RIF Installer . | . . . . . . Robots Hacked . | . . . . . . Non-combat . | . . . . . . Combat . | . . . . . . Robot Hacks Applied . | . . . . . . Relay Couplers Released . | . . . . . . Fabnet Peak Effective % . | . . . . . . Robots Rewired . | . . . . . . Allies Hacked . | . . . . . . Hacks Repelled . | . . . . . . Allies | -11 -10 -10 -9 -9 -9 -------- Run | Jun Mat Min Mat Min Exi Total Allies . | . . . . . . Largest Group . | . . . . . . Highest-Rated Group . | . . . . . . Highest-Rated Ally . | . . . . . . Total Orders . | . . . . . . Ally Attacks . | . . . . . . Total Damage . | . . . . . . Kills . | . . . . . . Allies Corrupted . | . . . . . . Allies Melted . | . . . . . . Intel | -11 -10 -10 -9 -9 -9 ------- Run | Jun Mat Min Mat Min Exi Robot Analysis Total . | . . . . . . Derelict Logs Recovered 2 | . . . . 2 . Drone Launches . | . . . . . . Drone Recoveries . | . . . . . . Exploration | -11 -10 -10 -9 -9 -9 ------------- Run | Jun Mat Min Mat Min Exi Turns Passed 1543 | 111 377 108 487 208 252 Spaces Moved 1362 | 64 287 130 439 198 244 Core 8 | 8 . . . . . Treads . | . . . . . . Legs 247 | 56 191 . . . . Wheels 417 | . . . . 173 244 Hover 690 | . 96 130 439 25 . Flight . | . . . . . . Fastest Speed 50 | 50 56 56 52 86 86 Average Speed 85 | 122 99 56 76 90 86 Slowest Speed 190 | 190 190 56 116 116 86 Overloaded Moves . | . . . . . . Propulsion Burnouts . | . . . . . . Robots Hopped . | . . . . . . Cave-ins Triggered . | . . . . . . Exploration Rate (%) 39 | 5 55 32 51 53 42 Regions Visited 5 Branch Regions 3 Pre-discovered Areas 2 | . . 1 . 1 . Known Exits Taken . | . . . . . . Unknown Exits Taken 5 | 1 1 1 1 1 . Scrap Searched 1 | . . 1 . . . Spaces Dug . | . . . . . . Terrain Destroyed 13 | . . . 3 10 . Melee . | . . . . . . Projectile . | . . . . . . AOE 13 | . . . 3 10 . Terrain Rammed . | . . . . . . Walls Destroyed . | . . . . . . Machines Disabled . | . . . . . . Actions | -11 -10 -10 -9 -9 -9 --------- Run | Jun Mat Min Mat Min Exi Total 1591 | 81 344 149 535 213 269 Wait 63 | . 10 7 46 . . Move 1357 | 63 286 129 438 197 244 Hop . | . . . . . . Pick Up 26 | 6 7 2 6 . 5 Fast Attach 18 | 6 3 . 4 3 2 Attach 6 | . . 1 4 1 . Detach 4 | . 2 . . 1 1 Swap 8 | . 1 . 5 1 1 Drop 19 | . 7 2 4 3 3 Fire 55 | 6 17 8 17 7 . Melee 21 | . . . 11 . 10 Ram 3 | . . . . . 3 Kick 11 | . 11 . . . . Crush . | . . . . . . Escape Stasis . | . . . . . . Rewire . | . . . . . . Trap . | . . . . . . Miscellaneous . | . . . . . . Route ------- -11/Junkyard -10/Materials (discovered 2 exits: [*Min x2]) -10/Mines -9/Materials (discovered 3 exits: [*Mat x2] / [*Min]) -9/Mines -9/Exiles History --------- Turn | Location | Event 3 | -11/Junkyard | Discovered new exit (range 16) 112 | -11/Junkyard | Entered Materials 285 | -10/Materials | Discovered new exit (range 8) 312 | -10/Materials | Build established: Mutant 472 | -10/Materials | Discovered new exit (range 15) 489 | -10/Materials | Entered Mines 551 | -10/Mines | Learned location of Storage (-7) 574 | -10/Mines | Found a damaged Exp. Sensor Array with a note attached 574 | -10/Mines | Discovered new exit (range 6) 576 | -10/Mines | Found Prototype Device 597 | -10/Mines | Entered Materials 597 | -9/Materials | Evolved 2 slots: Propulsion x1, Utility x1 782 | -9/Materials | Discovered new exit (range 12) 970 | -9/Materials | Discovered new exit (range 10) 1022 | -9/Materials | Discovered new exit (range 13) 1084 | -9/Materials | Entered Mines 1240 | -9/Mines | A weapon hastily lodged in a ceiling crevice suddenly fell to the ground 1268 | -9/Mines | Learned 2 Materials zone layouts 1288 | -9/Mines | Deemed a non-threat by the Exiles lab entrance 1288 | -9/Mines | Discovered new exit (range 5) 1292 | -9/Mines | Entered Exiles 1317 | -9/Exiles | Met 8R-AWN 1330 | -9/Exiles | Met EX-HEX 1354 | -9/Exiles | Met EX-BIN 1367 | -9/Exiles | Aligned with FarCom system 1368 | -9/Exiles | Given EX-Vault access code 1408 | -9/Exiles | Opened EX-Vault 1420 | -9/Exiles | Found Prototype Storage 1420 | -9/Exiles | Identified Superbattery 1428 | -9/Exiles | Found Prototype Storage 1428 | -9/Exiles | Identified Lightpack 2.0 1458 | -9/Exiles | Warned to stay clear of 0b10 Research branches 1514 | -9/Exiles | Attacked by the Exiles 1532 | -9/Exiles | Core integrity fell below 50% 1543 | -9/Exiles | Core integrity fell below 20% 1544 | -9/Exiles | Core destroyed Last Messages --------------- 01536_ HV Slug penetrates Wall. 01538_ Penetrated by HV Slug. 01538_ HV Slug penetrates Wall. 01538_ Penetrated by HV Slug. 01538_ HV Slug penetrates Wall. 01539_ Wall collapses. 01539_ as-61464 destroyed. 01540_ Penetrated by HV Slug. 01540_ Hvy. Mace destroyed. 01540_ HV Slug penetrates Earth. 01540_ Penetrated by HV Slug. 01540_ HV Slug penetrates Earth. 01541_ Slammed into 8R-AWN. 01542_ Penetrated by HV Slug. 01542_ HV Slug penetrates Machine. 01542_ Machine disabled. 01542_ Penetrated by HV Slug. 01542_ HV Slug penetrates Wall. 01542_ Slammed into 8R-AWN. 01544_ Destabilizing: Core damaged (-4). Map ----- +----------------------------------------------------+ | "#???????????????????????????????????????????????? | | "#???????????????????????????????????????????????? | | "#???????????????????????????????????????????????? | | "#???????????????????????????????????????????????? | | "#???????????????????????????????????????????????? | | "#???????????????????????????????????????????????? | | "#???????????????????????????????????????????????? | | "#???????????????????????????????????????????????? | | "#???????????????????????????????????????????????? | | "##??????????????????????????????????????????????? | | """??????????????????????????????????????????????? | | "##??????????????????????????????????????????????? | | """??????????????????????????????????????????????? | | #???????????????????????????????????????????????? | | "#???????????????????????????????????????????????? | | ##???????????????????????????????????????????????? | | ?????????????????????????????????????????????????? | | ?????????????????????????????????????????????????? | | ?????????????????????????????????????????????????? | | ########???????????????????????????????????? ???? | | """""""##??????????????????????????????????? ?? | | """ """"##?????????????????????????????????# #?? | | "" " #????????????????????????????????# ##? | | " """#???????????????????????????????# #? | | " "#???????????##########??????????# #? | | " "##?????????## %%@g #?????????## ?? | | ""###???????#" aa######????????## #??? | | """#??????##" a "#????????????# #??? | | "#????### % ###????????### #???? | | ##???# ########## #???? | | ##?## #""""## #????? | | ### * ##???? | | #" * #???? | | a ##"# ##??? | | ""###"""""#### ###? | | #"""##?#######??#### * ## | | ######??????????????##### | | ##???????????????????????### | | " ##??????????????????????????### | | """ ""#?????????????????????????????### | | ""#" "##??????????????????????????????#" | | ""##"""""""##???????????????????????????????#### | | "#?#########???????????????????????????????????# | | ???????????????????????????????????????????????## | | ????????????????????????????????????????????????## | | ?????????????????????????????????????????????????? | | ?????????????????????????????????????????????????? | | ?????????????????????????????????????????????????? | | ?????????????????????????????????????????????????? | | ?????????????????????????????????????????????????? | +----------------------------------------------------+ Best States ------------- Heat Dissipation 38 Energy Generation 12 Energy Capacity 265 Matter Stores 300 Matter Capacity 300 Sight Range 16 Robot Scan Range 14 Terrain Scan Density 10 Armor Coverage 150 Evasion (%) 55 Item Schematics ----------------- Datajack | -9/Materials | Scanalyzed Imp. Grenade Launcher | -9/Materials | Scanalyzed Hvy. Mace | -9/Materials | Scanalyzed Mining Laser | -9/Materials | Scanalyzed Robot Schematics ------------------ None Fabricated ------------ Nothing Alien Tech Used ----------------- None Achievements -------------- None Challenges ------------ None Game ------ Seed CoordinationFocalCorpse Manual? 0 Play Time 00:28:13 Cumulative 93.6 hours Start 2023.11.25 @ 10:32:26 End 2023.11.25 @ 10:59:26 Sessions 1 Manual Loads 0 Difficulty Rogue Special Mode None Game No. 75 Rogue 75 Adventurer 0 Explorer 0 Win Type - Total 1 Types 1/0/0/0/0/0/0/0/0 Lore% 49 Gallery% 64 Achievement% 51 Wizard Run 0 Options --------- ASCII 0 Keyboard 1 Movement Vi Keybinds 0 Fullscreen 2 Font 24/Smallcaps Map View 76x50 Tactical HUD 1 Map Filters NONE Filters NONE Steam 1 RUN: 6ecc6cb8-d22b-4aaa-a03d-913b38cd8aa1